bitfinex/quotes_ETHUSD_20241003
["timestamp","ask_amount","ask_price","bid_price","bid_amount"]
[1727967669776,4.30619,2322.3,2321.6,4.848116]
[1727967669930,4.30594,2322.4,2321.9,4.30677]
[1727967670282,4.30505,2322.9,2322.2,4.30616]
[1727967670283,4.30524,2322.8,2322.2,4.30616]
[1727967670641,4.3049,2323.0,2322.2,0.509126]
[1727967670722,4.3049,2323.0,2322.4,4.30585]
[1727967671307,0.7976,2323.2,2322.5,0.02755975]
[1727967671596,4.30464,2323.1,2322.4,4.30586]
[1727967671944,0.8069,2323.6,2322.8,0.55]
[1727967672192,4.30319,2323.9,2323.2,4.30439]
[1727967672402,0.8324,2324.4,2323.6,4.30366]
[1727967672610,5.13472,2324.4,2323.8,8.60646]
[1727967672791,5.13472,2324.4,2323.7,0.7905]
[1727967672792,6.078285,2324.4,2323.7,0.7905]
[1727967672953,4.30256,2324.2,2323.7,5.09396]
[1727967673183,4.30256,2324.2,2323.7,0.7905]
[1727967673500,4.30314,2323.9,2323.4,4.304]
[1727967673797,4.30341,2323.8,2323.3,3.7905]
[1727967673956,4.30357,2323.7,2323.3,3.7905]
[1727967674212,4.30324,2323.9,2323.3,3.7905]
[1727967674352,0.42940075,2324.3,2323.3,0.7905]
[1727967674589,4.30377,2323.6,2323.1,3.0]
[1727967674909,3.0,2324.1,2322.9,0.7912]
[1727967675205,5.13468,2324.4,2323.3,8.60825]
[1727967675487,4.3032,2323.9,2323.3,4.30412]
[1727967675847,4.30292,2324.0,2323.3,4.30412]
[1727967676051,0.430292,2324.0,2323.0,0.55]
[1727967676293,4.30338,2323.8,2323.2,4.3044]
[1727967676453,4.30338,2323.8,2323.0,0.55]
[1727967676454,4.30311,2323.9,2323.3,4.30406]
[1727967676652,4.30311,2323.9,2323.4,0.07244542]
[1727967676890,4.30311,2323.9,2323.3,4.30406]
[1727967677074,0.8324,2324.4,2323.5,4.30371]
[1727967677075,4.3029,2324.1,2323.5,4.30371]
[1727967677283,4.30251,2324.3,2323.8,4.3032]
[1727967677645,4.30212,2324.5,2323.6,0.55]
[1727967677837,5.0552,2324.7,2323.9,4.303]
[1727967678149,4.30052,2325.3,2324.5,4.30199]
[1727967678150,4.3006,2325.3,2324.5,4.30199]
[1727967678386,0.86509638,2325.9,2324.5,4.30199]
[1727967678387,0.792,2325.4,2324.5,5.10339]
[1727967678686,4.30181,2324.6,2324.2,3.0]
[1727967678896,4.30181,2324.6,2322.8,4.30501]
[1727967678897,0.86036,2324.6,2322.8,4.30501]
[1727967679057,0.8058,2324.8,2323.5,4.85381]
[1727967679264,4.30283,2324.1,2323.6,0.8105]
[1727967679566,4.30327,2323.9,2323.6,0.8105]
[1727967679868,4.30286,2324.1,2323.6,0.8105]
[1727967680088,4.733146,2324.1,2323.6,0.8105]
[1727967680260,4.30286,2324.1,2323.6,0.8105]
[1727967680441,4.30315,2323.9,2323.4,3.0]
[1727967680635,4.30315,2323.9,2323.4,7.30393]
[1727967681266,4.3037,2323.6,2322.9,4.30495]
[1727967681579,4.30395,2323.5,2322.9,4.3048]
[1727967681956,0.7835,2323.8,2323.1,4.30459]
[1727967681957,9.3903,2323.8,2323.1,4.30459]
[1727967682149,7.30306,2324.0,2323.4,4.304]
[1727967682504,4.30365,2323.7,2323.3,0.7871]
[1727967682650,4.30364,2323.7,2323.3,0.7871]
[1727967682850,4.30342,2323.8,2322.9,0.7987]
[1727967683239,4.30339,2323.8,2323.0,4.30461]
[1727967683439,4.30339,2323.8,2322.9,0.7987]
[1727967683639,4.30339,2323.8,2323.2,4.30424]
[1727967683900,4.30305,2324.0,2323.2,0.430424]
[1727967684198,4.30232,2324.4,2323.7,4.30345]
[1727967684342,4.30255,2324.2,2323.7,8.60683]
[1727967684543,4.30227,2324.4,2323.9,4.303]
[1727967684793,4.30227,2324.4,2323.7,4.30334]
[1727967684954,5.08005,2324.8,2324.1,5.10711]
[1727967684955,4.30165,2324.7,2324.1,5.10711]
[1727967685296,4.30026,2325.5,2324.2,0.55]
[1727967685297,4.30084,2325.2,2324.2,0.55]
[1727967685598,0.7972,2325.5,2324.2,0.55]
[1727967685788,4.30052,2325.3,2324.8,0.8035]
[1727967685961,4.30052,2325.3,2324.8,5.10493]
[1727967686163,4.30119,2325.0,2324.8,0.8035]
[1727967686359,4.30119,2325.0,2324.5,0.8035]
[1727967686559,4.30168,2324.7,2324.5,0.8035]
[1727967686754,4.30136,2324.9,2324.5,0.8035]
[1727967686974,4.30179,2324.7,2324.2,3.55]
[1727967687210,8.60302,2324.8,2324.3,4.30227]
[1727967687486,4.30061,2325.3,2324.3,4.30227]
[1727967687487,4.30126,2324.9,2324.3,4.30224]
[1727967687708,4.30161,2324.8,2324.3,4.30222]
[1727967687840,4.30121,2325.0,2324.3,0.567072]
[1727967688193,4.30092,2325.1,2324.5,0.55]
[1727967688357,0.509748,2325.4,2324.2,4.30242]
[1727967688563,0.509748,2325.4,2324.1,0.8185]
[1727967688564,4.30185,2324.6,2324.1,0.8185]
[1727967688903,4.30185,2324.6,2323.8,0.8121]
[1727967688904,0.8197,2324.6,2323.8,0.8121]
[1727967689197,4.30294,2324.0,2323.5,0.8121]
[1727967689355,4.3033,2323.8,2323.5,0.8121]
[1727967689693,4.3033,2323.8,2322.2,15.41871093]
[1727967689694,0.43033,2323.7,2323.4,4.30401]
[1727967689857,4.30286,2324.1,2323.1,0.8121]
[1727967690065,0.430185,2324.5,2323.1,0.8121]
[1727967690066,4.3035,2323.7,2323.1,0.8121]
[1727967690297,4.30322,2323.9,2323.1,0.8121]
[1727967690597,4.30301,2324.0,2323.4,4.30385]
[1727967690746,4.30305,2324.0,2323.4,8.60779]
[1727967690945,4.30274,2324.1,2323.6,4.30363]
[1727967691144,4.30274,2324.1,2323.5,4.30371]
[1727967691340,0.430185,2324.5,2323.2,4.30438]
[1727967691341,4.30212,2324.5,2323.8,0.831]
[1727967691545,8.60526,2324.2,2323.8,0.831]
[1727967691861,4.30204,2324.5,2324.0,4.30281]
[1727967692059,4.30227,2324.4,2323.9,0.08048408]
[1727967692401,4.30196,2324.6,2324.0,4.3028]
[1727967692540,4.30153,2324.8,2324.3,4.30236]
[1727967692746,4.30153,2324.8,2324.2,4.3024]
[1727967692939,0.7571,2325.3,2324.2,4.3024]
[1727967693190,4.30116,2325.0,2324.5,4.30182]
[1727967693376,0.7571,2325.3,2324.3,1.3444]
[1727967693575,4.30107,2325.0,2324.5,4.30191]
[1727967693774,4.30139,2324.9,2324.4,4.30201]
[1727967693999,4.30148,2324.8,2324.4,0.59892159]
[1727967694150,4.30139,2324.9,2324.4,4.90105159]
[1727967694349,4.30136,2324.9,2324.4,4.90105159]
[1727967694588,5.05765,2325.3,2324.3,0.7944]
[1727967694589,4.30211,2324.5,2324.3,0.7944]
[1727967694786,4.30145,2324.8,2324.3,4.30228]
[1727967694986,4.30145,2324.8,2324.3,4.30226]
[1727967695188,4.30224,2324.4,2324.1,0.8239]
[1727967695372,4.30163,2324.7,2324.2,4.30247]
[1727967695689,4.3021,2324.5,2324.2,0.07362288]
[1727967696011,8.60422,2324.5,2324.1,0.8239]
[1727967696309,8.60422,2324.5,2323.8,4.30313]
[1727967696310,4.30238,2324.3,2323.8,4.30319]
[1727967696464,4.30238,2324.3,2323.7,5.12086]
[1727967696465,4.30266,2324.2,2323.7,5.12086]
[1727967696689,4.30238,2324.3,2323.9,4.30309]
[1727967696890,4.30238,2324.3,2323.8,8.60648]
[1727967697087,4.30238,2324.3,2323.8,4.30321]
[1727967697408,4.30219,2324.4,2323.9,4.30302]
[1727967697625,4.30136,2324.9,2323.8,4.30318]
[1727967697626,4.30174,2324.7,2324.3,4.30236]
[1727967697768,4.3014,2324.9,2324.4,4.30217]
[1727967697973,4.3014,2324.9,2324.4,9.115737]
[1727967698209,4.30137,2324.9,2324.5,0.08586074]
[1727967698514,8.12866,2325.3,2324.3,0.8126]
[1727967698674,4.30163,2324.7,2324.3,0.8126]
[1727967698869,4.30199,2324.6,2324.3,0.8126]
[1727967699302,8.6039,2324.6,2324.3,0.8126]
[1727967699506,4.30191,2324.6,2324.3,0.8126]
[1727967699717,4.30164,2324.7,2324.3,0.8126]
[1727967700010,5.113686,2325.2,2324.3,5.626459]
[1727967700011,4.30134,2324.9,2324.3,5.626459]
[1727967700169,4.30073,2325.2,2324.7,4.30148]
[1727967700376,4.30073,2325.2,2324.4,0.55]
[1727967700377,4.30066,2325.3,2324.8,4.30128]
[1727967700595,4.30066,2325.3,2324.9,0.08201013]
[1727967701228,4.30066,2325.3,2324.5,0.7819]
[1727967701229,4.30101,2325.1,2324.7,0.55]
[1727967701367,8.602,2325.1,2324.7,0.55]
[1727967701710,4.30067,2325.3,2324.6,0.55]
[1727967701912,4.30067,2325.3,2324.8,4.3013]
[1727967702221,4.30025,2325.5,2324.8,4.3013]
[1727967702222,4.30037,2325.4,2324.9,4.30116]
[1727967702373,0.93871,2325.4,2324.6,0.55]
[1727967702575,4.30106,2325.1,2324.6,4.30177]
[1727967702780,4.30021,2325.5,2324.8,4.30128]
[1727967703086,4.30044,2325.4,2324.9,4.30117]
[1727967703293,4.30087,2325.2,2324.7,4.85158]
[1727967703504,4.30138,2324.9,2324.5,0.7819]
[1727967703711,4.30108,2325.0,2324.6,4.30179]
[1727967704016,4.30126,2324.9,2324.5,0.7819]
[1727967704246,4.30181,2324.6,2324.2,0.816]
[1727967704401,4.3019,2324.6,2324.2,0.816]
[1727967705053,4.30237,2324.3,2324.2,0.816]
[1727967705253,4.30237,2324.3,2323.9,5.1191]
[1727967705473,0.7633,2325.0,2323.9,5.1191]
[1727967705474,4.30201,2324.5,2324.1,4.30273]
[1727967705745,4.3021,2324.5,2323.9,0.816]
[1727967705900,4.30149,2324.8,2324.0,0.02303765]
[1727967706099,4.30149,2324.8,2324.4,4.30208]
[1727967706348,4.30149,2324.8,2323.9,0.816]
[1727967706349,3.0,2325.0,2323.9,0.816]
[1727967706563,1.549096,2324.9,2323.9,0.816]
[1727967706698,1.549096,2324.9,2323.6,0.8169]
[1727967706899,4.30273,2324.2,2323.7,4.3034]
[1727967707100,4.30319,2323.9,2323.6,0.8169]
[1727967707299,4.30319,2323.9,2323.0,4.30467]
[1727967707300,4.30403,2323.4,2323.3,0.8096]
[1727967707500,4.30403,2323.4,2322.4,4.30586]
[1727967707501,4.30385,2323.5,2322.4,0.8096]
[1727967707769,4.30331,2323.8,2322.7,4.30528]
[1727967707770,4.30449,2323.2,2322.7,4.30528]
[1727967708067,0.8185,2323.6,2322.7,4.30528]
[1727967708068,4.30404,2323.4,2322.7,4.30528]
[1727967708272,4.304,2323.5,2323.0,4.30468]
[1727967708431,4.30395,2323.5,2322.8,0.430528]
[1727967708610,0.430319,2323.9,2323.1,4.30456]
[1727967708611,4.30349,2323.7,2323.1,4.30456]
[1727967708812,0.7867,2323.9,2322.3,4.83360188]
[1727967708813,4.30325,2323.9,2323.4,5.06662]
[1727967709073,4.30248,2324.3,2323.4,0.7627]
[1727967709225,4.30256,2324.2,2323.5,4.37266873]
[1727967709561,4.30307,2324.0,2323.6,0.51353687]
[1727967709763,8.60609,2324.0,2323.6,0.51353687]
[1727967710064,4.30285,2324.1,2323.6,0.51353687]
[1727967710724,5.08874,2324.5,2323.6,0.51353687]
[1727967710725,4.30294,2324.0,2323.6,0.51353687]
[1727967711060,4.30221,2324.4,2323.4,0.7627]
[1727967711275,4.30359,2323.7,2323.4,0.7627]
[1727967711574,5.06744,2323.9,2323.0,0.7935]
[1727967711749,4.30404,2323.4,2323.0,0.7935]
[1727967711917,4.30442,2323.2,2322.7,5.08867]
[1727967712115,8.60893,2323.2,2322.7,5.08867]
[1727967712316,4.30442,2323.2,2322.7,0.7835]
[1727967712532,4.30442,2323.2,2322.7,5.08874]
[1727967712934,4.30442,2323.2,2322.8,4.30506]
[1727967713259,4.3039,2323.5,2323.0,4.30459]
[1727967713419,4.3039,2323.5,2323.1,4.30457]
[1727967713764,4.30365,2323.7,2323.1,4.30447]
[1727967714065,4.271029,2323.9,2322.7,0.7835]
[1727967714218,4.30437,2323.3,2322.7,5.08865]
[1727967714415,4.30437,2323.3,2322.8,4.30513]
[1727967714659,4.30441,2323.2,2322.8,4.30513]
[1727967714865,8.60897,2323.2,2322.7,5.08881]
[1727967715075,8.60897,2323.2,2322.8,4.30514]
[1727967715076,4.30441,2323.2,2322.8,4.30514]
[1727967715212,4.30441,2323.2,2322.7,5.597675]
[1727967715417,4.30468,2323.1,2322.7,5.597675]
[1727967715634,4.30468,2323.1,2322.7,1.292365]
[1727967715980,4.30503,2322.9,2322.7,0.7835]
[1727967716147,0.7832,2323.3,2322.1,4.30633]
[1727967716148,4.30525,2322.8,2322.3,4.30597]
[1727967716350,4.3056,2322.6,2322.1,0.7827]
[1727967716551,4.30489,2323.0,2322.4,4.30581]
[1727967716765,4.30489,2323.0,2322.6,4.30544]
[1727967717094,4.30475,2323.1,2322.7,0.8268]
[1727967717310,4.30444,2323.2,2322.8,4.30514]
[1727967717465,4.30444,2323.2,2322.7,5.13211]
[1727967717466,8.60896,2323.2,2322.7,5.13211]
[1727967717666,8.60901,2323.2,2322.7,5.13211]
[1727967717885,4.3046,2323.1,2322.7,5.13211]
[1727967718082,0.7832,2323.3,2322.7,5.13203]
[1727967718083,4.30451,2323.2,2322.7,5.13203]
[1727967718393,4.30506,2322.9,2322.5,4.30566]
[1727967718582,4.30488,2323.0,2322.4,5.11138]
[1727967718777,4.30462,2323.1,2322.6,4.30543]
[1727967719001,4.30452,2323.2,2322.7,4.30533]
[1727967719154,4.30329,2323.9,2322.6,4.30551]
[1727967719155,4.30459,2323.1,2322.6,4.30551]
[1727967719361,0.766,2323.5,2322.6,4.30551]
[1727967719362,4.30479,2323.0,2322.6,4.30551]
[1727967719687,4.30488,2323.0,2322.5,4.3056]
[1727967719997,0.766,2323.5,2322.5,4.3056]
[1727967720171,4.30471,2323.1,2322.6,4.30551]
[1727967720368,4.3044,2323.2,2322.4,5.1114]
[1727967720369,4.30516,2322.8,2322.4,5.1114]
[1727967720572,3.766,2323.5,2322.4,0.8056]
[1727967720770,4.30529,2322.8,2322.1,3.7602]
[1727967721011,4.30505,2322.9,2322.4,4.30576]
[1727967721306,4.30459,2323.1,2322.1,3.7602]
[1727967721470,4.30509,2322.9,2322.4,4.30578]
[1727967721805,4.30571,2322.5,2322.1,5.0665]
[1727967722008,0.8314,2322.7,2321.8,5.13308]
[1727967722158,0.8314,2322.7,2321.8,5.13296]
[1727967722365,4.30534,2322.7,2322.2,4.30625]
[1727967722671,4.30534,2322.7,2322.3,4.30607]
[1727967722858,4.30534,2322.7,2322.2,4.30625]
[1727967723180,4.30534,2322.7,2322.3,4.30599]
[1727967723386,0.7935,2323.3,2322.7,4.3053]
[1727967723557,0.7935,2323.3,2322.3,0.7819]
[1727967723558,4.3058,2322.5,2322.3,0.7819]
[1727967723758,0.815,2322.8,2321.9,3.811]
[1727967723979,4.30537,2322.7,2322.2,4.30617]
[1727967724261,4.3062,2322.3,2321.9,0.811]
[1727967724467,4.30638,2322.2,2321.9,0.811]
[1727967724660,4.3062,2322.3,2321.9,0.811]
[1727967724894,4.30564,2322.6,2322.0,4.30653]
[1727967725199,0.8699881,2323.4,2321.9,5.11772]
[1727967725200,8.11988,2323.0,2322.4,4.30586]
[1727967725404,3.0,2323.1,2322.3,0.8118]
[1727967725575,8.61128,2322.6,2322.3,0.8118]
[1727967726101,5.06459,2323.0,2322.0,5.1255]
[1727967726273,4.3051,2322.9,2322.4,4.30579]
[1727967726476,4.30518,2322.8,2322.4,4.30579]
[1727967727239,4.30527,2322.8,2322.1,0.51255]
[1727967727530,4.30571,2322.5,2322.1,4.30636]
[1727967727681,4.30571,2322.5,2322.0,5.12539]
[1727967727682,4.30546,2322.7,2322.2,4.30615]
[1727967727884,0.7597,2323.0,2322.2,0.512505]
[1727967727885,4.30513,2322.9,2322.2,0.512505]
[1727967728085,4.305,2322.9,2322.4,4.30574]
[1727967728333,4.30461,2323.1,2322.6,4.30539]
[1727967728535,4.30458,2323.2,2322.4,0.55]
[1727967728684,4.30458,2323.2,2322.8,4.3051]
[1727967729026,4.30411,2323.4,2322.9,4.30484]
[1727967729230,5.0752,2323.6,2322.4,3.55]
[1727967729231,4.30394,2323.5,2323.0,5.09226]
[1727967729445,6.84522108,2323.9,2323.1,0.08608186]
[1727967729662,4.3041,2323.4,2323.1,0.08608186]
[1727967729809,4.3041,2323.4,2322.4,7.85577]
[1727967729810,4.30487,2323.0,2322.6,0.7876]
[1727967730005,4.30486,2323.0,2322.6,0.7876]
[1727967730349,4.30504,2322.9,2322.6,0.7876]
[1727967730597,0.430504,2322.9,2322.1,0.7765]
[1727967730702,4.30597,2322.4,2322.1,0.7765]
[1727967730907,4.30597,2322.4,2321.7,0.7925]
[1727967730908,8.61178,2322.4,2321.7,0.7925]
[1727967731109,8.13065,2322.7,2321.7,5.09951]
[1727967731110,4.30629,2322.2,2321.7,5.09951]
[1727967731304,3.8252,2322.7,2321.8,0.509951]
[1727967731544,4.30581,2322.5,2321.9,4.39265638]
[1727967731849,4.30609,2322.3,2321.7,9.40665]
[1727967732033,4.30609,2322.3,2321.7,5.09956]
[1727967732238,4.3063,2322.2,2321.7,9.40664]
[1727967732441,0.8252,2322.7,2321.7,0.7925]
[1727967732608,0.8252,2322.7,2322.0,4.30661]
[1727967732609,8.61189,2322.4,2322.0,4.30661]
[1727967732812,4.30664,2322.0,2321.7,0.7925]
[1727967733126,4.30586,2322.5,2321.9,4.30674]
[1727967733451,4.30586,2322.5,2321.7,0.7925]
[1727967733452,4.30656,2322.1,2321.7,0.7925]
[1727967733759,4.30683,2321.9,2321.7,0.7925]
[1727967733903,4.30663,2322.1,2321.7,0.7925]
[1727967734261,4.3066,2322.1,2321.2,5.11356]
[1727967734457,4.30619,2322.3,2321.8,4.30697]
[1727967734612,0.7821,2322.5,2321.8,4.30697]
[1727967734613,5.08797,2322.5,2321.9,4.30681]
[1727967734812,3.7821,2322.8,2321.8,4.30689]
[1727967735018,4.30593,2322.4,2322.0,4.30662]
[1727967735318,4.30609,2322.3,2321.8,8.61382]
[1727967735534,4.89531,2322.8,2321.7,0.8055]
[1727967735771,4.30629,2322.2,2321.4,0.7704]
[1727967735983,4.30802,2321.3,2320.8,5.05953]
[1727967736168,4.30792,2321.4,2320.9,4.30866]
[1727967736481,4.30792,2321.4,2321.0,0.505946]
[1727967736642,4.30764,2321.5,2321.0,0.505946]
[1727967736840,0.37963,2321.9,2320.8,0.7508]
[1727967736841,4.30704,2321.8,2320.8,0.7508]
[1727967737055,3.37963,2321.9,2320.5,4.30929]
[1727967737056,4.30867,2320.9,2320.5,0.8073]
[1727967737286,4.3085,2321.0,2320.5,5.1167]
[1727967737788,4.30784,2321.4,2320.9,4.30858]
[1727967737953,4.30784,2321.4,2321.0,0.51701887]
[1727967738177,4.30749,2321.6,2321.2,4.30811]
[1727967738515,4.30749,2321.6,2321.1,0.801]
[1727967738800,4.30765,2321.5,2321.1,0.801]
[1727967739018,4.30806,2321.3,2321.1,0.801]
[1727967739220,4.30811,2321.2,2320.8,0.8296]
[1727967739397,4.30811,2321.2,2320.8,5.13845]
[1727967739913,4.30811,2321.2,2320.8,5.13842]
[1727967740114,4.30811,2321.2,2320.8,0.8296]
[1727967740406,4.30813,2321.2,2320.8,0.8296]
[1727967740703,4.30802,2321.3,2320.8,5.6522]
[1727967740915,5.08299,2321.7,2320.8,0.8296]
[1727967740916,4.3084,2321.1,2320.8,0.8296]
[1727967741204,4.30812,2321.2,2320.8,0.8296]
[1727967741410,4.30769,2321.5,2321.0,4.30847]
[1727967741612,4.30766,2321.5,2321.0,8.61694]
[1727967741973,4.30756,2321.5,2321.1,4.30815]
[1727967742117,0.37963,2321.9,2320.9,3.0]
[1727967742469,4.30827,2321.2,2320.8,0.8296]
[1727967742804,4.30704,2321.8,2321.1,4.30818]
[1727967743065,4.3071,2321.8,2321.3,4.30785]
[1727967743266,4.3071,2321.8,2320.8,0.8296]
[1727967743267,4.3073,2321.7,2320.8,0.8296]
[1727967743555,0.939634,2321.8,2320.1,4.31002]
[1727967743556,4.30833,2321.1,2320.5,5.10931]
[1727967743763,4.30893,2320.8,2320.5,0.8]
[1727967743967,5.08285,2321.6,2320.5,0.8]
[1727967744171,4.30885,2320.9,2320.5,0.8]
[1727967744451,4.30844,2321.1,2320.6,4.3091]
[1727967744648,4.30844,2321.1,2320.7,4.30901]
[1727967744858,4.30844,2321.1,2320.6,4.3091]
[1727967744859,4.30841,2321.1,2320.6,4.3091]
[1727967745024,4.3084,2321.1,2320.6,4.30915]
[1727967745351,4.30837,2321.1,2320.7,4.30903]
[1727967745717,0.7753,2321.6,2320.8,4.30874]
[1727967745718,4.30787,2321.4,2320.8,4.30874]
[1727967745917,4.30802,2321.3,2320.9,0.8201]
[1727967746064,4.30702,2321.8,2321.1,4.30819]
[1727967746265,4.30789,2321.4,2320.9,5.12866]
[1727967746464,4.30788,2321.4,2320.9,5.641486]
[1727967746813,4.30789,2321.4,2320.9,5.641556]
[1727967746977,4.30739,2321.6,2321.0,4.30848]
[1727967747183,4.30739,2321.6,2320.9,1.332966]
[1727967747184,8.61488,2321.6,2321.1,0.5641446]
[1727967747368,4.30764,2321.5,2320.9,5.12863]
[1727967747560,4.30764,2321.5,2321.0,4.30833]
[1727967747764,4.30731,2321.7,2321.3,4.30792]
[1727967747765,4.30726,2321.7,2321.3,4.30792]
[1727967748005,4.30627,2322.2,2321.7,4.30716]
[1727967748213,4.30622,2322.3,2321.7,4.30714]
[1727967748365,4.30622,2322.3,2321.7,4.872534]
[1727967748572,4.30622,2322.3,2321.8,4.30685]
[1727967748877,4.3059,2322.4,2322.0,4.3066]
[1727967749061,4.30549,2322.7,2322.2,4.30618]
[1727967749257,4.30605,2322.4,2321.8,0.8316]
[1727967749476,8.61342,2322.0,2321.5,5.13915]
[1727967749672,5.943533,2322.4,2321.8,4.30688]
[1727967749673,4.30616,2322.3,2321.8,4.30688]
[1727967749906,4.30628,2322.2,2321.7,4.30708]
[1727967750123,0.7764,2322.4,2321.5,0.8316]
[1727967750335,4.30748,2321.6,2321.2,5.10731]
[1727967750633,4.30782,2321.4,2321.2,0.7993]
[1727967750835,0.832,2321.9,2321.2,0.7993]
[1727967750977,4.30758,2321.5,2321.2,0.7993]
[1727967751180,4.30758,2321.5,2320.3,4.30975]
[1727967751181,4.30781,2321.4,2320.9,0.7718]
[1727967751417,3.0,2321.8,2320.9,0.7718]
[1727967751612,4.30751,2321.6,2321.1,4.30821]
[1727967751818,3.0,2321.8,2321.3,4.30784]
[1727967751819,7.30702,2321.8,2321.3,4.30784]
[1727967752022,4.30768,2321.5,2321.0,4.30845]
[1727967752173,4.3076,2321.5,2321.0,4.30834]
[1727967752501,3.0,2321.8,2320.9,5.08037]
[1727967752502,4.3071,2321.8,2321.3,4.30783]
[1727967752712,4.30764,2321.5,2320.9,5.08037]
[1727967752889,4.30764,2321.5,2321.0,4.30845]
[1727967753404,4.30783,2321.4,2320.9,5.08039]
[1727967753774,3.832,2321.9,2320.9,0.7718]
[1727967753975,3.832,2321.9,2320.8,4.30885]
[1727967753976,4.3082,2321.2,2320.8,4.30885]
[1727967754221,0.7858,2321.3,2320.6,0.7718]
[1727967754438,4.3082,2321.2,2320.4,0.066253]
[1727967754578,4.30912,2320.7,2320.4,0.066253]
[1727967754778,4.30894,2320.8,2320.4,4.375833]
[1727967755087,4.30894,2320.8,2320.4,0.066253]
[1727967755295,0.7858,2321.3,2320.5,4.30933]
[1727967755296,4.30863,2321.0,2320.5,4.30933]
[1727967755493,4.30823,2321.2,2320.7,4.309]
[1727967755692,3.0,2321.4,2320.9,4.30858]
[1727967755693,4.30787,2321.4,2320.9,4.30858]
[1727967755889,4.30787,2321.4,2320.8,0.7699]
[1727967756137,4.30758,2321.5,2321.0,4.3084]
[1727967756426,0.8121,2321.6,2320.9,4.30849]
[1727967756593,4.30774,2321.5,2320.9,4.30849]
[1727967756919,4.30774,2321.5,2321.0,4.3084]
[1727967757139,4.30769,2321.5,2320.9,4.30849]
[1727967757346,4.30769,2321.5,2321.0,4.30834]
[1727967757623,4.30789,2321.4,2320.9,4.30849]
[1727967757776,4.30784,2321.4,2320.9,4.30849]
[1727967757981,4.819834,2321.4,2321.0,4.30845]
[1727967758332,0.8004,2321.3,2320.5,0.5147383]
[1727967758519,4.30839,2321.1,2320.6,4.30913]
[1727967758677,4.30899,2320.8,2320.4,0.066253]
[1727967758881,4.30937,2320.6,2320.4,0.066253]
[1727967759121,3.8004,2321.3,2320.4,4.375743]
[1727967759122,0.8004,2321.3,2320.4,4.375743]
[1727967759275,4.3089,2320.8,2320.4,4.375743]
[1727967759478,3.0,2321.1,2320.4,0.066253]
[1727967759725,4.30857,2321.0,2320.4,0.066253]
[1727967759925,4.30869,2320.9,2320.4,0.066253]
[1727967760106,3.0,2321.0,2320.5,4.30932]
[1727967760302,7.30854,2321.0,2320.5,4.30932]
[1727967760521,7.30854,2321.0,2320.5,4.30929]
[1727967760775,4.30872,2320.9,2320.5,4.30929]
[1727967761098,4.30914,2320.7,2320.4,0.066253]
[1727967761597,4.30885,2320.8,2320.4,0.066253]
[1727967761787,5.5646454,2320.9,2320.4,4.375743]
[1727967762137,0.7989,2320.9,2320.4,0.066253]
[1727967762285,0.7989,2320.9,2320.5,4.30929]
[1727967762485,4.30857,2321.0,2320.5,4.30931]
[1727967762685,4.30857,2321.0,2320.4,4.375723]
[1727967762686,4.30869,2320.9,2320.4,4.375723]
[1727967763441,4.30899,2320.8,2320.4,0.066253]
[1727967763600,4.30941,2320.5,2320.4,0.066253]
[1727967763799,4.30901,2320.8,2320.4,4.375773]
[1727967763986,4.3087,2320.9,2320.4,4.375773]
[1727967764191,4.30914,2320.7,2320.4,0.066253]
[1727967764435,5.08245,2321.1,2320.4,0.066253]
[1727967764739,4.30867,2320.9,2320.5,4.30933]
[1727967764887,5.116815,2321.0,2320.5,4.30929]
[1727967765087,4.30857,2321.0,2320.5,4.30929]
[1727967765288,0.774,2321.1,2320.5,4.30929]
[1727967765542,7.30822,2321.2,2320.7,4.30888]
[1727967765837,4.30856,2321.0,2320.4,5.183363]
[1727967765991,1.236748,2321.2,2320.4,5.183363]
[1727967765992,4.30822,2321.2,2320.7,4.30896]
[1727967766338,4.30813,2321.2,2320.7,4.30896]
[1727967766545,8.05926,2321.4,2320.4,5.183303]
[1727967766546,4.30835,2321.1,2320.4,5.183303]
[1727967766834,4.30721,2321.7,2321.1,4.30828]
[1727967766835,4.30765,2321.5,2321.1,4.30828]
[1727967767138,4.30729,2321.7,2320.7,4.30894]
[1727967767139,4.30821,2321.2,2320.7,4.30894]
[1727967767285,4.30787,2321.4,2320.9,4.30863]
[1727967767486,4.30787,2321.4,2321.0,4.30845]
[1727967767711,4.30796,2321.3,2320.9,4.30866]
[1727967767925,0.86154,2321.4,2320.7,4.30901]
[1727967767926,4.30834,2321.1,2320.7,4.30901]
[1727967768153,4.30753,2321.6,2320.9,4.30854]
[1727967768434,4.30753,2321.6,2321.1,4.30827]
[1727967768435,4.30759,2321.5,2321.1,4.30827]
[1727967768594,4.30837,2321.1,2320.7,4.30894]
[1727967768786,4.30797,2321.3,2320.8,4.30867]
[1727967769187,4.30812,2321.2,2320.8,4.30867]
[1727967769382,4.30797,2321.3,2320.9,4.30866]
[1727967769383,4.30793,2321.3,2320.9,4.30866]
[1727967769600,0.7648,2321.7,2320.7,4.30894]
[1727967769796,0.37648,2321.6,2320.9,4.30866]
[1727967769996,4.30776,2321.4,2321.0,4.30837]
[1727967770286,4.30778,2321.4,2321.0,4.30837]
[1727967770951,5.0721,2321.7,2321.1,4.30814]
[1727967771089,5.11893,2322.0,2321.5,4.30751]